lending/lending_fUSD_20250318
["ID","MTS","AMOUNT","RATE_DAILY","PERIOD"]
[356366397,1742339519472,-1387.99,0.0003726,12]
[356366398,1742339519482,-843.24,0.0003726,12]
[356366399,1742339519492,-500.0,0.0003726,12]
[356366400,1742339519502,-2465.62,0.0003726,12]
[356366401,1742339519511,-975.0,0.0003726,12]
[356366402,1742339519521,-609.77,0.0003726,12]
[356366403,1742339519530,-1078.91,0.0003726,12]
[356366404,1742339519540,-500.0,0.0003726,12]
[356366405,1742339519550,-974.58,0.0003726,12]
[356366406,1742339519560,-2236.78,0.0003726,12]
[356366407,1742339519571,-1919.16,0.0003726,12]
[356366408,1742339519581,-2066.04,0.0003726,12]
[356366409,1742339519591,-1744.56,0.0003726,12]
[356366410,1742339519601,-924.09,0.0003726,12]
[356366411,1742339519611,-965.89,0.0003726,12]
[356366412,1742339519621,-630.53,0.0003726,12]
[356366413,1742339519631,-500.0,0.0003726,12]
[356366414,1742339519642,-2170.13,0.0003726,7]
[356366415,1742339519653,-500.0,0.0003726,12]
[356366416,1742339519663,-500.0,0.0003726,12]
[356366417,1742339519674,-500.0,0.0003726,12]
[356366418,1742339519685,-4236.85,0.0003726,12]
[356366419,1742339519695,-701.55,0.0003726,12]
[356366420,1742339519705,-940.24,0.0003726,12]
[356366421,1742339519714,-2071.16,0.0003726,12]
[356366422,1742339519724,-2364.63,0.0003726,12]
[356366423,1742339519734,-833.55,0.0003726,12]
[356366424,1742339519744,-1084.3,0.0003726,12]
[356366425,1742339519754,-1166.33,0.0003726,12]
[356366426,1742339519764,-511.51689646,0.0003726,12]
[356366427,1742339519774,-561.87451204,0.0003726,12]
[356366428,1742339519789,-500.0,0.0003726,12]
[356366429,1742339519799,-1018.16,0.0003726,12]
[356366430,1742339519810,-500.0,0.0003726,12]
[356366431,1742339519821,-500.0,0.0003726,12]
[356366432,1742339519833,-3791.02,0.0003726,12]
[356366433,1742339519843,-722.87,0.0003726,12]
[356366434,1742339519855,-591.18,0.0003726,12]
[356366435,1742339519868,-627.35,0.0003726,12]
[356366436,1742339519880,-2218.35,0.0003726,12]
[356366437,1742339519891,-433.99,0.0003726,12]
[356366438,1742339519903,-500.0,0.0003726,12]
[356366439,1742339519915,-500.0,0.0003726,12]
[356366440,1742339519926,-2207.71,0.0003726,12]
[356366441,1742339519939,-1038.13,0.0003726,12]
[356366442,1742339519950,-7286.97,0.0003726,2]
[356366443,1742339519960,-500.0,0.0003726,12]
[356366444,1742339519972,-500.0,0.0003726,12]
[356366445,1742339519985,-500.0,0.0003726,12]
[356366446,1742339519997,-662.54,0.0003726,12]
[356366447,1742339520009,-4093.1,0.0003726,12]
[356366448,1742339520019,-500.0,0.0003726,12]
[356366449,1742339520031,-500.0,0.0003726,12]
[356366450,1742339520043,-617.61,0.0003726,12]
[356366451,1742339520055,-884.25,0.0003726,12]
[356366452,1742339520065,-568.35,0.0003726,12]
[356366453,1742339520078,-500.0,0.0003726,12]
[356366454,1742339520091,-609.45034481,0.0003726,12]
[356366455,1742339520103,-2314.16,0.0003726,12]
[356366456,1742339520114,-1249.76,0.0003726,12]
[356366457,1742339520126,-590.8,0.0003726,12]
[356366458,1742339520141,-605.74,0.0003726,12]
[356366459,1742339520154,-4019.27,0.0003726,12]
[356366460,1742339520165,-845.44,0.0003726,12]
[356366461,1742339520180,-500.0,0.0003726,12]
[356366462,1742339520190,-500.0,0.0003726,12]
[356366463,1742339520200,-500.0,0.0003726,12]
[356366464,1742339520210,-509.98890675,0.0003726,12]
[356366465,1742339520220,-500.0,0.0003726,12]
[356366466,1742339520230,-522.28288018,0.0003726,12]
[356366467,1742339520240,-1263.79,0.0003726,12]
[356366468,1742339520250,-500.0,0.0003726,12]
[356366469,1742339520259,-722.51,0.0003726,12]
[356366470,1742339520269,-841.11,0.0003726,12]
[356366471,1742339520279,-500.0,0.0003726,12]
[356366472,1742339520289,-582.04,0.0003726,12]
[356366473,1742339520299,-1361.67,0.0003726,12]
[356366474,1742339520308,-713.87,0.0003726,12]
[356366475,1742339520317,-1473.86,0.0003726,12]
[356366476,1742339520327,-1912.63,0.0003726,12]
[356366477,1742339520336,-500.0,0.0003726,12]
[356366478,1742339520346,-500.0,0.0003726,12]
[356366479,1742339520355,-714.31,0.0003726,12]
[356366480,1742339520364,-635.53,0.0003726,12]
[356366481,1742339520374,-1883.04,0.0003726,12]
[356366482,1742339520383,-500.0,0.0003726,12]
[356366483,1742339520393,-500.0,0.0003726,12]
[356366484,1742339520403,-5988.8,0.0003726,12]
[356366485,1742339520412,-500.0,0.0003726,12]
[356366486,1742339520422,-2180.97,0.0003726,10]
[356366487,1742339520432,-1955.72,0.0003726,12]
[356366488,1742339520442,-2131.38,0.0003726,12]
[356366489,1742339520452,-6906.57,0.0003726,12]
[356366490,1742339520463,-500.0,0.0003726,12]
[356366491,1742339520472,-713.4,0.0003726,12]
[356366492,1742339520482,-1357.37,0.0003726,12]
[356366493,1742339520492,-758.94,0.0003726,12]
[356366494,1742339520502,-500.0,0.0003726,12]
[356366495,1742339520512,-153.18252183,0.0003726,12]
[356366496,1742339520522,-517.02,0.0003726,12]
[356366497,1742339520533,-1496.75,0.0003726,12]
[356366498,1742339520543,-1214.53,0.0003726,12]
[356366499,1742339520553,-500.0,0.0003726,12]
[356366500,1742339520563,-500.0,0.0003726,12]
[356366501,1742339520573,-500.0,0.0003726,12]
[356366502,1742339520583,-2414.38,0.0003726,12]
[356366503,1742339520594,-500.0,0.0003726,12]
[356366504,1742339520605,-1375.9,0.0003726,12]
[356366505,1742339520616,-1974.79,0.0003726,12]
[356366506,1742339520627,-925.56,0.0003726,12]
[356366507,1742339520637,-712.94,0.0003726,12]
[356366508,1742339520648,-839.12,0.0003726,12]
[356366509,1742339520658,-1067.84,0.0003726,12]
[356366510,1742339520668,-1426.33,0.0003726,12]
[356366511,1742339520678,-767.88,0.0003726,12]
[356366512,1742339520689,-1432.86,0.0003726,12]
[356366513,1742339520699,-780.68,0.0003726,12]
[356366514,1742339520709,-1216.8,0.0003726,12]
[356366515,1742339520719,-1487.69,0.0003726,12]
[356366516,1742339520728,-500.0,0.0003726,12]
[356366517,1742339520738,-1708.8,0.0003726,12]
[356366518,1742339520748,-500.0,0.0003726,12]
[356366519,1742339520757,-674.04,0.0003726,12]
[356366520,1742339520766,-913.22,0.0003726,12]
[356366521,1742339520775,-1017.99,0.0003726,12]
[356366522,1742339520786,-1929.03,0.0003726,12]
[356366523,1742339520799,-902.37,0.0003726,12]
[356366524,1742339520809,-2290.36,0.0003726,12]
[356366525,1742339520819,-1430.23,0.0003726,12]
[356366526,1742339520831,-500.0,0.0003726,12]
[356366527,1742339520841,-1072.64,0.0003726,12]
[356366528,1742339520851,-500.0,0.0003726,12]
[356366529,1742339520862,-1760.11,0.0003726,12]
[356366530,1742339520874,-1638.63,0.0003726,12]
[356366531,1742339520884,-1729.5,0.0003726,12]
[356366532,1742339520895,-794.12,0.0003726,12]
[356366533,1742339520906,-500.0,0.0003726,12]
[356366534,1742339520917,-1045.11,0.0003726,12]
[356366535,1742339520927,-682.57,0.0003726,12]
[356366536,1742339520937,-500.0,0.0003726,12]
[356366537,1742339520947,-1395.45,0.0003726,12]
[356366538,1742339520958,-1231.14,0.0003726,12]
[356366539,1742339520968,-1432.26,0.0003726,12]
[356366540,1742339520978,-1130.18,0.0003726,12]
[356366541,1742339520989,-500.0,0.0003726,12]
[356366542,1742339520999,-1071.53,0.0003726,12]
[356366543,1742339521009,-500.0,0.0003726,12]
[356366544,1742339521020,-10881.54,0.0003726,12]
[356366545,1742339521284,-940.53,0.0003726,12]
[356366546,1742339521294,-931.98,0.0003726,12]
[356366547,1742339521305,-643.93,0.0003726,12]
[356366548,1742339521314,-736.61,0.0003726,12]
[356366549,1742339521323,-1889.22,0.0003726,12]
[356366550,1742339521333,-500.0,0.0003726,12]
[356366551,1742339521342,-1912.43,0.0003726,12]
[356366552,1742339521351,-1500.0,0.0003726,12]
[356366553,1742339521360,-500.0,0.0003726,12]
[356366554,1742339521369,-867.89,0.0003726,12]
[356366555,1742339521379,-655.9,0.0003726,12]
[356366556,1742339521388,-3492.09,0.0003726,12]
[356366557,1742339521397,-8347.58,0.0003726,12]
[356366558,1742339521408,-982.97,0.0003726,12]
[356366559,1742339521417,-793.27,0.0003726,12]
[356366560,1742339521427,-500.0,0.0003726,12]
[356366561,1742339521436,-2617.2,0.0003726,12]
[356366562,1742339521445,-500.0,0.0003726,12]
[356366563,1742339521454,-224.8046177,0.0003726,12]
[356366564,1742339521463,-619.45787189,0.0003726,12]
[356366565,1742339521472,-500.0,0.0003726,12]
[356366566,1742339521480,-674.83,0.0003726,12]
[356366567,1742339521490,-2613.79,0.0003726,12]
[356366568,1742339521499,-1198.65,0.0003726,12]
[356366569,1742339521509,-500.0,0.0003726,12]
[356366570,1742339521517,-500.0,0.0003726,12]
[356366571,1742339521526,-1104.92,0.0003726,12]
[356366572,1742339521535,-1000.0,0.0003726,12]
[356366573,1742339521544,-500.0,0.0003726,120]
[356366574,1742339521553,-1351.56,0.0003726,12]
[356366575,1742339521562,-500.0,0.0003726,12]
[356366576,1742339521571,-573.24,0.0003726,12]
[356366577,1742339521580,-1155.96,0.0003726,12]
[356366578,1742339521590,-592.77,0.0003726,12]
[356366579,1742339521599,-678.37,0.0003726,12]
[356366580,1742339521608,-819.5,0.0003726,12]
[356366581,1742339521617,-1747.47,0.0003726,12]
[356366582,1742339521625,-881.57,0.0003726,12]
[356366583,1742339521634,-733.05,0.0003726,12]
[356366584,1742339521643,-566.73,0.0003726,12]
[356366585,1742339521652,-779.59,0.0003726,12]
[356366586,1742339521661,-700.61,0.0003726,12]
[356366587,1742339521670,-500.0,0.0003726,12]
[356366588,1742339521679,-500.0,0.0003726,12]
[356366589,1742339521688,-6201.97,0.0003726,12]
[356366590,1742339521698,-500.0,0.0003726,12]
[356366591,1742339521708,-2724.32,0.0003726,12]
[356366592,1742339521717,-604.41344378,0.0003726,12]
[356366593,1742339521726,-673.71,0.0003726,12]
[356366594,1742339521736,-500.0,0.0003726,6]
[356366595,1742339521745,-634.03,0.0003726,12]
[356366596,1742339521755,-1388.66,0.0003726,12]
[356366597,1742339521764,-1201.66,0.0003726,12]
[356366598,1742339521774,-500.0,0.0003726,12]
[356366599,1742339521785,-789.17,0.0003726,12]
[356366600,1742339521800,-500.0,0.0003726,12]
[356366601,1742339521809,-500.0,0.0003726,12]
[356366602,1742339521819,-765.41,0.0003726,12]
[356366603,1742339521828,-500.0,0.0003726,12]
[356366604,1742339521838,-637.48,0.0003726,12]
[356366605,1742339521848,-1408.89,0.0003726,12]
[356366606,1742339521855,-1079.25,0.0003726,12]
[356366607,1742339521863,-500.0,0.0003726,12]
[356366608,1742339521871,-629.47,0.0003726,12]
[356366609,1742339521881,-500.0,0.0003726,12]
[356366610,1742339521891,-500.0,0.0003726,12]
[356366611,1742339521900,-500.0,0.0003726,12]
[356366612,1742339521911,-2483.39,0.0003726,12]
[356366613,1742339521921,-500.0,0.0003726,12]
[356366614,1742339521931,-818.98,0.0003726,12]
[356366615,1742339521941,-8678.86,0.0003726,12]
[356366616,1742339521951,-500.0,0.0003726,12]
[356366617,1742339521960,-500.0,0.0003726,12]
[356366618,1742339521969,-500.0,0.0003726,12]
[356366619,1742339521978,-852.66,0.0003726,12]
[356366620,1742339521988,-500.0,0.0003726,12]
[356366621,1742339521996,-1387.5,0.0003726,12]
[356366622,1742339522006,-609.81,0.0003726,12]
[356366623,1742339522015,-500.0,0.0003726,12]
[356366624,1742339522025,-1940.56,0.0003726,12]
[356366625,1742339522035,-982.22,0.0003726,12]
[356366626,1742339522045,-5124.49,0.0003726,12]
[356366627,1742339522054,-500.0,0.0003726,12]
[356366628,1742339522063,-848.28,0.0003726,12]
[356366629,1742339522072,-555.67,0.0003726,12]
[356366630,1742339522081,-500.0,0.0003726,12]
[356366631,1742339522090,-610.21,0.0003726,12]
[356366632,1742339522099,-797.64,0.0003726,12]
[356366633,1742339522109,-500.0,0.0003726,12]
[356366634,1742339522118,-1404.74,0.0003726,12]
[356366635,1742339522127,-500.0,0.0003726,12]
[356366636,1742339522136,-570.46,0.0003726,12]
[356366637,1742339522146,-626.53,0.0003726,12]
[356366638,1742339522156,-1037.27,0.0003726,12]
[356366639,1742339522165,-500.0,0.0003726,12]
[356366640,1742339522175,-2051.57,0.0003726,12]
[356366641,1742339522184,-1010.64,0.0003726,12]
[356366642,1742339522194,-500.0,0.0003726,12]
[356366643,1742339522203,-517.9,0.0003726,12]
[356366644,1742339522213,-500.0,0.0003726,12]
[356366645,1742339522222,-631.88006983,0.0003726,12]
[356366646,1742339522232,-753.9,0.0003726,12]
[356366647,1742339522241,-976.72,0.0003726,12]
[356366648,1742339522250,-698.57,0.0003726,12]
[356366649,1742339522259,-810.35,0.0003726,12]
[356366650,1742339522268,-816.08,0.0003726,12]
[356366651,1742339522277,-1763.99,0.0003726,12]
[356366652,1742339522286,-500.0,0.0003726,12]
[356366653,1742339522295,-807.5,0.0003726,12]
[356366654,1742339522304,-974.77,0.0003726,12]
[356366655,1742339522313,-500.0,0.0003726,12]
[356366656,1742339522323,-1119.31,0.0003726,12]
[356366657,1742339522331,-500.0,0.0003726,12]
[356366658,1742339522341,-1305.41,0.0003726,12]
[356366659,1742339522350,-764.52,0.0003726,12]
[356366660,1742339522359,-1054.67,0.0003726,12]
[356366661,1742339522368,-500.0,0.0003726,12]
[356366662,1742339522377,-500.0,0.0003726,12]
[356366663,1742339522387,-636.48,0.0003726,12]
[356366664,1742339522396,-548.95674087,0.0003726,12]
[356366665,1742339522405,-697.71,0.0003726,12]
[356366666,1742339522414,-500.0,0.0003726,2]
[356366667,1742339522423,-871.68,0.0003726,12]
[356366668,1742339522433,-784.0,0.0003726,12]
[356366669,1742339522442,-500.0,0.0003726,12]
[356366670,1742339522451,-1505.16,0.0003726,12]
[356366671,1742339522461,-500.0,0.0003726,12]
[356366672,1742339522469,-500.0,0.0003726,12]
[356366673,1742339522479,-3544.19,0.0003726,12]
[356366674,1742339522488,-500.0,0.0003726,12]
[356366675,1742339522497,-500.0,0.0003726,12]
[356366676,1742339522506,-1054.74,0.0003726,12]
[356366677,1742339522516,-3375.24,0.0003726,12]
[356366678,1742339522526,-500.0,0.0003726,12]
[356366679,1742339522535,-500.0,0.0003726,12]
[356366680,1742339522545,-1877.16,0.0003726,12]
[356366681,1742339522554,-500.0,0.0003726,12]
[356366682,1742339522564,-284.08465431,0.0003726,12]
[356366683,1742339522574,-1691.18,0.0003726,12]
[356366684,1742339522583,-500.0,0.0003726,12]
[356366685,1742339522592,-517.11,0.0003726,12]
[356366686,1742339522602,-1037.55,0.0003726,12]
[356366687,1742339522611,-571.44,0.0003726,12]
[356366688,1742339522621,-1000.0,0.0003726,4]
[356366689,1742339522630,-1657.99266,0.00037288,30]
[356366690,1742339522639,-723.97,0.000373,14]
[356366691,1742339522647,-524.31716385,0.00037383,7]
[356366692,1742339522661,-1000.0,0.00037397,4]
[356366693,1742339522670,-151.031817,0.00037398,120]
[356366694,1742339522679,-274.0,0.000374,120]
[356366695,1742339522689,-1657.99266,0.00037488,30]
[356366696,1742339522699,-151.031805,0.00037498,120]
[356366697,1742339522708,-353.0,0.000375,120]
[356366698,1742339522718,-659.41722244,0.00037534,2]
[356366699,1742339522727,-161.47106927,0.00037534,2]
[356366700,1742339522737,-500.0,0.00037534,12]
[356366701,1742339522745,-660.95,0.00037534,12]
[356366702,1742339522754,-500.0,0.00037534,12]
[356366703,1742339522763,-1089.18,0.00037534,12]
[356366704,1742339522774,-1280.18,0.00037534,12]
[356366705,1742339522786,-500.0,0.00037534,12]
[356366706,1742339522796,-705.65,0.00037534,12]
[356366707,1742339522804,-500.0,0.00037534,12]
[356366708,1742339522813,-500.0,0.00037534,12]
[356366709,1742339522822,-839.95,0.00037534,12]
[356366710,1742339522832,-500.0,0.00037534,12]
[356366711,1742339522842,-463.8431868,0.00037534,12]
[356366712,1742339522850,-500.0,0.00037534,12]
[356366713,1742339522860,-500.0,0.00037534,12]
[356366714,1742339522870,-500.0,0.00037534,12]
[356366715,1742339522880,-586.59,0.00037534,12]
[356366716,1742339522890,-500.0,0.00037534,12]
[356366717,1742339522900,-500.0,0.00037534,12]
[356366718,1742339522909,-659.86,0.00037534,12]
[356366719,1742339522918,-500.0,0.00037534,12]
[356366720,1742339522928,-500.0,0.00037534,12]
[356366721,1742339522937,-500.0,0.00037534,12]
[356366722,1742339522946,-500.0,0.00037534,12]
[356366723,1742339522955,-781.58,0.00037534,12]
[356366724,1742339522964,-500.0,0.00037534,12]
[356366725,1742339522973,-578.43,0.00037534,12]
[356366726,1742339522983,-716.41,0.00037534,12]
[356366727,1742339522993,-500.0,0.00037534,12]
[356366728,1742339523002,-875.76,0.00037534,12]
[356366729,1742339523012,-500.0,0.00037534,12]
[356366730,1742339523022,-500.0,0.00037534,12]
[356366731,1742339523032,-500.0,0.00037534,12]
[356366732,1742339523041,-500.0,0.00037534,12]
[356366733,1742339523051,-1293.1,0.00037534,12]
[356366734,1742339523061,-554.73,0.00037534,12]
[356366735,1742339523070,-500.0,0.00037534,12]
[356366736,1742339523080,-500.0,0.00037534,12]
[356366737,1742339523089,-887.4,0.00037534,12]
[356366738,1742339523099,-933.35,0.00037534,12]
[356366739,1742339523109,-645.27,0.00037534,12]
[356366740,1742339523118,-1270.34,0.00037534,12]
[356366741,1742339523127,-253.22376646,0.00037534,12]
[356366742,1742339523137,-635.6,0.00037534,12]
[356366743,1742339523147,-546.63,0.00037534,12]
[356366744,1742339523156,-541.37205615,0.00037534,12]
[356366745,1742339523165,-500.0,0.00037534,12]
[356366746,1742339523175,-500.0,0.00037534,12]
[356366747,1742339523184,-1007.61,0.00037534,12]
[356366748,1742339523192,-500.0,0.00037534,12]
[356366749,1742339523202,-616.02,0.00037534,12]
[356366750,1742339523211,-686.76,0.00037534,12]
[356366751,1742339523220,-500.0,0.00037534,12]
[356366752,1742339523230,-500.0,0.00037534,12]
[356366753,1742339523240,-500.0,0.00037534,12]
[356366754,1742339523250,-500.0,0.00037534,12]
[356366755,1742339523259,-531.32,0.00037534,12]
[356366756,1742339523268,-500.0,0.00037534,12]
[356366757,1742339523277,-601.48,0.00037534,12]
[356366758,1742339523286,-567.63,0.00037534,12]
[356366759,1742339523295,-500.0,0.00037534,12]
[356366760,1742339523305,-963.46,0.00037534,12]
[356366761,1742339523314,-500.0,0.00037534,12]
[356366762,1742339523325,-500.0,0.00037534,12]
[356366763,1742339523335,-815.63,0.00037534,12]
[356366764,1742339523344,-500.0,0.00037534,12]
[356366765,1742339523353,-500.0,0.00037534,12]
[356366766,1742339523362,-500.0,0.00037534,12]
[356366767,1742339523372,-500.0,0.00037534,12]
[356366768,1742339523381,-500.0,0.00037534,12]
[356366769,1742339523391,-500.0,0.00037534,12]
[356366770,1742339523402,-500.0,0.00037534,12]
[356366771,1742339523412,-500.0,0.00037534,12]
[356366772,1742339523422,-500.37,0.00037534,12]
[356366773,1742339523431,-546.76,0.00037534,12]
[356366774,1742339523441,-500.0,0.00037534,12]
[356366775,1742339523451,-500.0,0.00037534,12]
[356366776,1742339523460,-500.0,0.00037534,12]
[356366777,1742339523470,-500.0,0.00037534,12]
[356366778,1742339523480,-599.5,0.00037534,12]
[356366779,1742339523490,-343.11738035,0.00037534,12]
[356366780,1742339523500,-729.58,0.00037534,12]
[356366781,1742339523601,-500.0,0.00037534,12]
[356366782,1742339523611,-922.39,0.00037534,12]
[356366783,1742339523621,-500.0,0.00037534,12]
[356366784,1742339523631,-500.0,0.00037534,12]
[356366785,1742339523641,-1163.14,0.00037534,12]
[356366786,1742339523651,-875.92,0.00037534,30]
[356366787,1742339523661,-500.0,0.00037534,12]
[356366788,1742339523671,-750.87,0.00037534,12]
[356366789,1742339523681,-500.0,0.00037534,12]
[356366790,1742339523690,-1410.05,0.00037534,12]
[356366791,1742339523699,-510.0,0.00037534,12]
[356366792,1742339523709,-541.9,0.00037534,12]
[356366793,1742339523719,-500.0,0.00037534,12]
[356366794,1742339523728,-2100.21,0.00037534,12]
[356366795,1742339523738,-500.0,0.00037534,12]
[356366796,1742339523748,-819.72,0.00037534,12]
[356366797,1742339523757,-500.0,0.00037534,12]
[356366798,1742339523766,-500.0,0.00037534,12]
[356366799,1742339523776,-868.85,0.00037534,12]
[356366800,1742339523788,-500.0,0.00037534,12]
[356366801,1742339523797,-163.344036,0.00037534,12]
[356366802,1742339523806,-500.0,0.00037534,12]
[356366803,1742339523816,-832.99,0.00037534,12]
[356366804,1742339523827,-500.0,0.00037534,12]
[356366805,1742339523835,-500.0,0.00037534,12]
[356366806,1742339523844,-1487.67,0.00037534,12]
[356366807,1742339523853,-1565.380344,0.00037534,12]
[356366808,1742339523863,-151.731954,0.00037534,12]
[356366809,1742339523872,-728.98,0.00037534,12]
[356366810,1742339523882,-500.0,0.00037534,12]
[356366811,1742339523891,-156.823057,0.00037534,12]
[356366812,1742339523901,-500.0,0.00037534,12]
[356366813,1742339523910,-915.45,0.00037534,12]
[356366814,1742339523919,-500.0,0.00037534,12]
[356366815,1742339523929,-523.14,0.00037534,12]
[356366816,1742339523938,-500.0,0.00037534,12]
[356366817,1742339523947,-500.0,0.00037534,12]
[356366818,1742339523956,-500.0,0.00037534,12]
[356366819,1742339523966,-415.53198,0.00037534,12]
[356366820,1742339523975,-500.0,0.00037534,12]
[356366821,1742339523984,-500.0,0.00037534,12]
[356366822,1742339523994,-571.54,0.00037534,12]
[356366823,1742339524003,-500.0,0.00037534,12]
[356366824,1742339524012,-500.0,0.00037534,12]
[356366825,1742339524022,-547.0,0.00037534,12]
[356366826,1742339524031,-500.0,0.00037534,12]
[356366827,1742339524041,-1579.021524,0.00037534,12]
[356366828,1742339524050,-500.0,0.00037534,12]
[356366829,1742339524059,-229.83303355,0.00037534,12]
[356366830,1742339524070,-540.14,0.00037534,12]
[356366831,1742339524079,-500.0,0.00037534,12]
[356366832,1742339524089,-500.0,0.00037534,12]
[356366833,1742339524098,-507.06,0.00037534,12]
[356366834,1742339524108,-500.0,0.00037534,12]
[356366835,1742339524117,-500.0,0.00037534,12]
[356366836,1742339524126,-1406.95,0.00037534,12]
[356366837,1742339524135,-1265.92,0.00037534,12]
[356366838,1742339524144,-583.92,0.00037534,12]
[356366839,1742339524153,-500.0,0.00037534,12]
[356366840,1742339524163,-819.59,0.00037534,12]
[356366841,1742339524171,-500.0,0.00037534,12]
[356366842,1742339524181,-1112.86,0.00037534,12]
[356366843,1742339524190,-500.0,0.00037534,12]
[356366844,1742339524199,-157.90772074,0.00037534,12]
[356366845,1742339524208,-500.0,0.00037534,12]
[356366846,1742339524217,-500.0,0.00037534,12]
[356366847,1742339524225,-849.05,0.00037534,12]
[356366848,1742339524233,-610.12,0.00037534,12]
[356366849,1742339524243,-500.0,0.00037534,12]
[356366850,1742339524252,-500.0,0.00037534,12]
[356366851,1742339524262,-500.0,0.00037534,12]
[356366852,1742339524271,-966.8,0.00037534,12]
[356366853,1742339524280,-500.0,0.00037534,12]
[356366854,1742339524289,-562.17,0.00037534,12]
[356366855,1742339524298,-500.0,0.00037534,12]
[356366856,1742339524308,-500.0,0.00037534,12]
[356366857,1742339524317,-500.0,0.00037534,12]
[356366858,1742339524326,-500.0,0.00037534,12]
[356366859,1742339524335,-500.0,0.00037534,12]
[356366860,1742339524343,-500.0,0.00037534,12]
[356366861,1742339524353,-500.0,0.00037534,12]
[356366862,1742339524361,-565.83,0.00037534,12]
[356366863,1742339524371,-500.0,0.00037534,12]
[356366864,1742339524380,-897.12,0.00037534,12]
[356366865,1742339524389,-500.0,0.00037534,12]
[356366866,1742339524399,-500.0,0.00037534,12]
[356366867,1742339524409,-500.0,0.00037534,12]
[356366868,1742339524420,-500.0,0.00037534,12]
[356366869,1742339524429,-500.0,0.00037534,12]
[356366870,1742339524438,-547.85411674,0.00037534,12]
[356366871,1742339524448,-588.08,0.00037534,12]
[356366872,1742339524458,-500.0,0.00037534,12]
[356366873,1742339524467,-539.17,0.00037534,12]
[356366874,1742339524476,-500.0,0.00037534,12]
[356366875,1742339524485,-500.0,0.00037534,12]
[356366876,1742339524495,-2686.86,0.00037534,12]
[356366877,1742339524505,-956.37,0.00037534,12]
[356366878,1742339524513,-500.0,0.00037534,12]
[356366879,1742339524523,-1521.69,0.00037534,7]
[356366880,1742339524531,-500.0,0.00037534,12]
[356366881,1742339524541,-914.58,0.00037534,12]
[356366882,1742339524550,-500.0,0.00037534,12]
[356366883,1742339524560,-500.0,0.00037534,12]
[356366884,1742339524569,-500.0,0.00037534,12]
[356366885,1742339524579,-537.65,0.00037534,12]
[356366886,1742339524588,-1313.1,0.00037534,12]
[356366887,1742339524598,-500.0,0.00037534,12]
[356366888,1742339524609,-894.12,0.00037534,12]
[356366889,1742339524619,-500.0,0.00037534,12]
[356366890,1742339524630,-500.0,0.00037534,12]
[356366891,1742339524641,-500.0,0.00037534,12]
[356366892,1742339524651,-500.0,0.00037534,12]
[356366893,1742339524662,-523.64,0.00037534,12]
[356366894,1742339524672,-500.0,0.00037534,12]
[356366895,1742339524682,-500.0,0.00037534,12]
[356366896,1742339524691,-500.0,0.00037534,12]